[Event "Late-Titled-Tuesday-Blitz-February-20-2024"]
[Site "Chess.com"]
[Date "2024.02.20"]
[Round "8"]
[White "ansko1999"]
[Black "Eloist"]
[Result "1-0"]
[WhiteElo "2659"]
[BlackElo "2470"]
[TimeControl "180+1"]
[EndTime "15:29:06 PST"]
[Termination "ansko1999 won by resignation"]

1. c3 {[%clk 0:03:00.9]} 1... e5 {[%clk 0:02:52.8]} 2. e4 {[%clk 0:02:59.1]}
2... Nf6 {[%clk 0:02:51.3]} 3. d3 {[%clk 0:02:53.5]} 3... d5 {[%clk 0:02:51.1]}
4. Nd2 {[%clk 0:02:53.4]} 4... c6 {[%clk 0:02:44.3]} 5. Ngf3 {[%clk 0:02:47.7]}
5... Bd6 {[%clk 0:02:44]} 6. Be2 {[%clk 0:02:46.6]} 6... O-O {[%clk 0:02:43.4]}
7. O-O {[%clk 0:02:47.2]} 7... Re8 {[%clk 0:02:43.6]} 8. Re1 {[%clk 0:02:41.1]}
8... Nbd7 {[%clk 0:02:43.5]} 9. a4 {[%clk 0:02:27.6]} 9... a5 {[%clk 0:02:42.5]}
10. Bf1 {[%clk 0:02:24.6]} 10... Nf8 {[%clk 0:02:39.5]} 11. d4 {[%clk
0:02:09.3]} 11... Ng6 {[%clk 0:02:31.9]} 12. dxe5 {[%clk 0:02:01.5]} 12... Nxe5
{[%clk 0:02:29.8]} 13. exd5 {[%clk 0:01:55.2]} 13... Nxd5 {[%clk 0:02:21.3]} 14.
Nxe5 {[%clk 0:01:53.1]} 14... Bxe5 {[%clk 0:02:13.5]} 15. Nf3 {[%clk 0:01:43.5]}
15... Bf6 {[%clk 0:02:07.4]} 16. Rxe8+ {[%clk 0:01:39.4]} 16... Qxe8 {[%clk
0:02:08.3]} 17. h3 {[%clk 0:01:39.5]} 17... Bf5 {[%clk 0:02:00.7]} 18. Bc4
{[%clk 0:01:37.9]} 18... Rd8 {[%clk 0:02:00.1]} 19. Qe2 {[%clk 0:01:19.7]} 19...
Qxe2 {[%clk 0:01:58.7]} 20. Bxe2 {[%clk 0:01:20.6]} 20... h6 {[%clk 0:01:47.9]}
21. Bd2 {[%clk 0:00:58.9]} 21... g5 {[%clk 0:01:41.1]} 22. Nd4 {[%clk
0:00:51.4]} 22... Bxd4 {[%clk 0:01:18.5]} 23. cxd4 {[%clk 0:00:52.3]} 23... Nb4
{[%clk 0:01:15.7]} 24. Bc3 {[%clk 0:00:49.1]} 24... Be4 {[%clk 0:00:55.2]} 25.
Bc4 {[%clk 0:00:36.9]} 25... Bd5 {[%clk 0:00:53.6]} 26. Bxd5 {[%clk 0:00:31.9]}
26... Rxd5 {[%clk 0:00:47.7]} 27. Kf1 {[%clk 0:00:28.3]} 27... f5 {[%clk
0:00:40]} 28. Ke2 {[%clk 0:00:27.7]} 28... Kf7 {[%clk 0:00:39.9]} 29. g3 {[%clk
0:00:18.6]} 29... Rd7 {[%clk 0:00:39]} 30. Rc1 {[%clk 0:00:14.6]} 30... Na2
{[%clk 0:00:32]} 31. Rc2 {[%clk 0:00:13.6]} 31... Nxc3+ {[%clk 0:00:28.8]} 32.
bxc3 {[%clk 0:00:14.5]} 32... Ke6 {[%clk 0:00:28.6]} 33. Kd3 {[%clk 0:00:15]}
33... c5 {[%clk 0:00:28]} 34. Re2+ {[%clk 0:00:14.7]} 34... Kd6 {[%clk
0:00:27.3]} 35. Re5 {[%clk 0:00:13.5]} 35... cxd4 {[%clk 0:00:25.1]} 36. cxd4
{[%clk 0:00:14.4]} 36... b6 {[%clk 0:00:23.2]} 37. Rxf5 {[%clk 0:00:14.6]} 37...
Ke6 {[%clk 0:00:22.4]} 38. Re5+ {[%clk 0:00:14.7]} 38... Kf6 {[%clk 0:00:22.6]}
39. Ke4 {[%clk 0:00:11.9]} 39... Rc7 {[%clk 0:00:21.7]} 40. Rb5 {[%clk
0:00:11.2]} 40... Rc6 {[%clk 0:00:20.5]} 41. f4 {[%clk 0:00:10.6]} 41... gxf4
{[%clk 0:00:20]} 42. gxf4 {[%clk 0:00:11.4]} 42... Re6+ {[%clk 0:00:18.6]} 43.
Kf3 {[%clk 0:00:11.3]} 43... Rd6 {[%clk 0:00:17.6]} 44. Ke4 {[%clk 0:00:10.1]}
44... Re6+ {[%clk 0:00:17.7]} 45. Kd3 {[%clk 0:00:10]} 45... Rc6 {[%clk
0:00:15.6]} 46. h4 {[%clk 0:00:09.4]} 46... Rd6 {[%clk 0:00:14]} 47. f5 {[%clk
0:00:08.9]} 47... Rc6 {[%clk 0:00:13.7]} 48. Ke4 {[%clk 0:00:09]} 48... Ke7
{[%clk 0:00:11.7]} 49. Ke5 {[%clk 0:00:08.4]} 49... Rc1 {[%clk 0:00:10.3]} 50.
Rxb6 {[%clk 0:00:08.4]} 50... Re1+ {[%clk 0:00:10.5]} 51. Kd5 {[%clk 0:00:08.9]}
51... Rf1 {[%clk 0:00:10.2]} 52. Re6+ {[%clk 0:00:08.8]} 52... Kf7 {[%clk
0:00:09.6]} 53. Rxh6 {[%clk 0:00:07.3]} 53... Rxf5+ {[%clk 0:00:08.8]} 54. Kc4
{[%clk 0:00:08]} 54... Rf4 {[%clk 0:00:07.8]} 55. Rh5 {[%clk 0:00:07.9]} 55...
Kg6 {[%clk 0:00:07.7]} 56. Rxa5 {[%clk 0:00:07.9]} 56... Rxh4 {[%clk 0:00:07.8]}
57. Re5 {[%clk 0:00:08.5]} 57... Kf6 {[%clk 0:00:07.2]} 58. a5 {[%clk
0:00:08.9]} 58... Rh1 {[%clk 0:00:07.4]} 59. Kb5 {[%clk 0:00:08.1]} 59... Rc1
{[%clk 0:00:08.3]} 60. a6 {[%clk 0:00:08.2]} 60... Rb1+ {[%clk 0:00:08.5]} 61.
Kc6 {[%clk 0:00:08.5]} 61... Rc1+ {[%clk 0:00:07.9]} 62. Kb6 {[%clk 0:00:09]}
62... Rd1 {[%clk 0:00:08]} 63. Rd5 {[%clk 0:00:08.6]} 63... Rb1+ {[%clk
0:00:07.8]} 64. Rb5 {[%clk 0:00:08.8]} 64... Rd1 {[%clk 0:00:06.8]} 65. a7
{[%clk 0:00:08.9]} 65... Rxd4 {[%clk 0:00:06.9]} 66. a8=Q {[%clk 0:00:09.1]} 1-0

[Event "Late-Titled-Tuesday-Blitz-February-20-2024"]
[Site "Chess.com"]
[Date "2024.02.20"]
[Round "8"]
[White "rachidhuilda"]
[Black "wild3000"]
[Result "0-1"]
[WhiteElo "2338"]
[BlackElo "2396"]
[TimeControl "180+1"]
[EndTime "15:29:06 PST"]
[Termination "wild3000 won by resignation"]

1. d4 {[%clk 0:01:49.7]} 1... Nf6 {[%clk 0:01:34.4]} 2. Bg5 {[%clk 0:01:46.7]}
2... Ne4 {[%clk 0:01:34.1]} 3. Bf4 {[%clk 0:01:46.9]} 3... b6 {[%clk 0:01:33.3]}
4. f3 {[%clk 0:01:44]} 4... Nf6 {[%clk 0:01:32.7]} 5. e4 {[%clk 0:01:44.2]} 5...
Bb7 {[%clk 0:01:33.1]} 6. Bd3 {[%clk 0:01:44.5]} 6... e6 {[%clk 0:01:32.2]} 7.
Ne2 {[%clk 0:01:42.9]} 7... c5 {[%clk 0:01:32.5]} 8. c3 {[%clk 0:01:42.3]} 8...
d5 {[%clk 0:01:31.4]} 9. Nd2 {[%clk 0:01:38.9]} 9... cxd4 {[%clk 0:01:30.3]} 10.
Nxd4 {[%clk 0:01:33.1]} 10... dxe4 {[%clk 0:01:29.8]} 11. Nxe4 {[%clk
0:01:33.2]} 11... Nd5 {[%clk 0:01:28.7]} 12. Bb5+ {[%clk 0:01:28.9]} 12... Nd7
{[%clk 0:01:28]} 13. Nd6+ {[%clk 0:01:13.5]} 13... Bxd6 {[%clk 0:01:25.5]} 14.
Bxd6 {[%clk 0:01:14.4]} 14... a6 {[%clk 0:01:22.6]} 15. Bd3 {[%clk 0:00:49.9]}
15... Nc5 {[%clk 0:01:20.3]} 16. Bxc5 {[%clk 0:00:43.7]} 16... bxc5 {[%clk
0:01:20]} 17. Nc2 {[%clk 0:00:41.7]} 17... Qh4+ {[%clk 0:01:07.7]} 18. g3 {[%clk
0:00:39.4]} 18... Qf6 {[%clk 0:01:05.5]} 19. Qe2 {[%clk 0:00:34.3]} 19... O-O
{[%clk 0:01:04.4]} 20. O-O {[%clk 0:00:32.8]} 20... Rfd8 {[%clk 0:00:59.1]} 21.
Rad1 {[%clk 0:00:32.6]} 21... g6 {[%clk 0:00:52.7]} 22. Be4 {[%clk 0:00:32.7]}
22... Rab8 {[%clk 0:00:51.2]} 23. Kg2 {[%clk 0:00:32.3]} 23... h5 {[%clk
0:00:50.5]} 24. h4 {[%clk 0:00:31.3]} 24... Ba8 {[%clk 0:00:42.6]} 25. Bxd5
{[%clk 0:00:19.4]} 25... Bxd5 {[%clk 0:00:41.7]} 26. Ne3 {[%clk 0:00:19.5]}
26... Bb7 {[%clk 0:00:35.4]} 27. Rxd8+ {[%clk 0:00:19.4]} 27... Rxd8 {[%clk
0:00:33.7]} 28. Rd1 {[%clk 0:00:19.9]} 28... Kg7 {[%clk 0:00:28]} 29. Rxd8
{[%clk 0:00:18.8]} 29... Qxd8 {[%clk 0:00:28.8]} 30. Qd1 {[%clk 0:00:19.3]}
30... Qxd1 {[%clk 0:00:25.9]} 31. Nxd1 {[%clk 0:00:19.2]} 31... Kf6 {[%clk
0:00:23.2]} 32. Kf2 {[%clk 0:00:19.7]} 32... Ke5 {[%clk 0:00:23.1]} 33. Ke3
{[%clk 0:00:20.1]} 33... f6 {[%clk 0:00:23.4]} 34. Nf2 {[%clk 0:00:20.1]} 34...
g5 {[%clk 0:00:21.1]} 35. Nd3+ {[%clk 0:00:20.6]} 35... Kd6 {[%clk 0:00:21.2]}
36. b4 {[%clk 0:00:18.5]} 36... cxb4 {[%clk 0:00:20.3]} 37. cxb4 {[%clk
0:00:18.3]} 37... Bd5 {[%clk 0:00:18.8]} 38. a3 {[%clk 0:00:17.8]} 38... Bc4
{[%clk 0:00:16.7]} 39. Nc5 {[%clk 0:00:17.6]} 39... Kc6 {[%clk 0:00:12.2]} 40.
Ne4 {[%clk 0:00:16.2]} 40... gxh4 {[%clk 0:00:11.5]} 41. gxh4 {[%clk 0:00:16.5]}
41... Kb5 {[%clk 0:00:10.2]} 42. Kd4 {[%clk 0:00:12.4]} 42... Be2 {[%clk
0:00:09.5]} 43. Ke3 {[%clk 0:00:10.7]} 43... Bd1 {[%clk 0:00:07.8]} 44. Nc3+
{[%clk 0:00:10.8]} 44... Kc4 {[%clk 0:00:08.1]} 45. Nxd1 {[%clk 0:00:11.7]}
45... Kb3 {[%clk 0:00:08.5]} 46. Nf2 {[%clk 0:00:09.6]} 46... Kxa3 {[%clk
0:00:08.7]} 47. Nd3 {[%clk 0:00:10.3]} 47... Kb3 {[%clk 0:00:08]} 48. Kd4 {[%clk
0:00:10.5]} 48... e5+ {[%clk 0:00:05.7]} 49. Ke3 {[%clk 0:00:09.9]} 49... Kc4
{[%clk 0:00:05.1]} 50. f4 {[%clk 0:00:06.6]} 50... exf4+ {[%clk 0:00:04]} 51.
Nxf4 {[%clk 0:00:07.1]} 51... Kxb4 {[%clk 0:00:04.7]} 52. Nxh5 {[%clk 0:00:08]}
52... a5 {[%clk 0:00:04.5]} 53. Nxf6 {[%clk 0:00:08.9]} 53... a4 {[%clk
0:00:04.7]} 54. Ne4 {[%clk 0:00:09.8]} 54... a3 {[%clk 0:00:04]} 55. Nf6 {[%clk
0:00:04.6]} 55... a2 {[%clk 0:00:03.6]} 56. Nd5+ {[%clk 0:00:05.5]} 56... Kb3
{[%clk 0:00:03.8]} 57. Nc3 {[%clk 0:00:05.7]} 57... Kxc3 {[%clk 0:00:03.7]} 58.
h5 {[%clk 0:00:06.6]} 58... a1=Q {[%clk 0:00:03.9]} 59. h6 {[%clk 0:00:07.3]}
59... Qa7+ {[%clk 0:00:04.7]} 60. Kf4 {[%clk 0:00:04.6]} 60... Qh7 {[%clk
0:00:05.6]} 61. Kg5 {[%clk 0:00:05.5]} 61... Kd4 {[%clk 0:00:06]} 62. Kh5 {[%clk
0:00:06.2]} 62... Ke5 {[%clk 0:00:06.3]} 63. Kg5 {[%clk 0:00:07.1]} 63... Ke6
{[%clk 0:00:06.7]} 0-1

[Event "Late-Titled-Tuesday-Blitz-February-20-2024"]
[Site "Chess.com"]
[Date "2024.02.20"]
[Round "8"]
[White "Pachonpower"]
[Black "TemploVillamarin"]
[Result "1-0"]
[WhiteElo "2321"]
[BlackElo "2167"]
[TimeControl "180+1"]
[EndTime "15:29:28 PST"]
[Termination "Pachonpower won by resignation"]

1. g3 {[%clk 0:02:57]} 1... f5 {[%clk 0:02:58.1]} 2. Bg2 {[%clk 0:02:57.9]} 2...
Nf6 {[%clk 0:02:58.3]} 3. d3 {[%clk 0:02:57.7]} 3... e5 {[%clk 0:02:58.6]} 4. e4
{[%clk 0:02:58]} 4... Nc6 {[%clk 0:02:52]} 5. Ne2 {[%clk 0:02:52.1]} 5... Bc5
{[%clk 0:02:48.2]} 6. O-O {[%clk 0:02:49.9]} 6... d6 {[%clk 0:02:46.8]} 7. c3
{[%clk 0:02:46.5]} 7... fxe4 {[%clk 0:02:43.8]} 8. dxe4 {[%clk 0:02:46.5]} 8...
O-O {[%clk 0:02:42.1]} 9. a4 {[%clk 0:02:44.5]} 9... a5 {[%clk 0:02:41]} 10. Nd2
{[%clk 0:02:41.5]} 10... Ng4 {[%clk 0:02:36.2]} 11. Nf3 {[%clk 0:02:37.4]} 11...
Qf6 {[%clk 0:02:15.8]} 12. h3 {[%clk 0:02:23.9]} 12... Nxf2 {[%clk 0:01:59.2]}
13. Rxf2 {[%clk 0:02:24.8]} 13... Bxh3 {[%clk 0:01:51.3]} 14. Qf1 {[%clk
0:02:05.8]} 14... Bxg2 {[%clk 0:01:40.6]} 15. Kxg2 {[%clk 0:02:05.5]} 15... Qg6
{[%clk 0:01:22.2]} 16. Neg1 {[%clk 0:01:46.3]} 16... Bxf2 {[%clk 0:01:19.4]} 17.
Qxf2 {[%clk 0:01:47.2]} 17... Qxe4 {[%clk 0:01:19.6]} 18. Qe3 {[%clk 0:01:45.2]}
18... Qg6 {[%clk 0:01:08.4]} 19. Nh4 {[%clk 0:01:41.3]} 19... Qc2+ {[%clk
0:01:01.6]} 20. Qd2 {[%clk 0:01:39.1]} 20... Qe4+ {[%clk 0:01:00.1]} 21. Nhf3
{[%clk 0:01:36.6]} 21... Rf6 {[%clk 0:00:46.6]} 22. Qe2 {[%clk 0:01:35.3]} 22...
Qg4 {[%clk 0:00:39.4]} 23. Bg5 {[%clk 0:01:22]} 23... Rf5 {[%clk 0:00:34.5]} 24.
Be3 {[%clk 0:01:16.9]} 24... Raf8 {[%clk 0:00:33.1]} 25. Rd1 {[%clk 0:01:04.9]}
25... e4 {[%clk 0:00:23.9]} 26. Nh4 {[%clk 0:00:59.6]} 26... Qxe2+ {[%clk
0:00:22.6]} 27. Nxe2 {[%clk 0:01:00.5]} 27... R5f7 {[%clk 0:00:22.7]} 28. Nd4
{[%clk 0:00:58.2]} 28... Ne5 {[%clk 0:00:21.6]} 29. Nb5 {[%clk 0:00:57.2]} 29...
h6 {[%clk 0:00:19.5]} 30. Bf4 {[%clk 0:00:50.7]} 30... Kh7 {[%clk 0:00:18.1]}
31. Bxe5 {[%clk 0:00:50.8]} 31... dxe5 {[%clk 0:00:19]} 32. Kh3 {[%clk
0:00:47.8]} 32... g5 {[%clk 0:00:18]} 33. Ng2 {[%clk 0:00:48]} 33... h5 {[%clk
0:00:17.6]} 34. Rd5 {[%clk 0:00:45.8]} 34... Rf2 {[%clk 0:00:17.4]} 35. Ne3
{[%clk 0:00:36]} 35... Kg6 {[%clk 0:00:12.8]} 36. Rxe5 {[%clk 0:00:24.1]} 36...
g4+ {[%clk 0:00:12.3]} 37. Nxg4 {[%clk 0:00:23.2]} 37... hxg4+ {[%clk
0:00:13.2]} 38. Kxg4 {[%clk 0:00:24.1]} 38... Rxb2 {[%clk 0:00:13.3]} 39. Nxc7
{[%clk 0:00:21.4]} 39... Re2 {[%clk 0:00:10.8]} 40. Ne6 {[%clk 0:00:20.4]} 40...
Rf3 {[%clk 0:00:06.6]} 41. Nf4+ {[%clk 0:00:20.1]} 41... Rxf4+ {[%clk
0:00:07.1]} 42. Kxf4 {[%clk 0:00:20.7]} 42... Ra2 {[%clk 0:00:07.5]} 43. Rxe4
{[%clk 0:00:20.8]} 43... Ra3 {[%clk 0:00:08]} 44. Rc4 {[%clk 0:00:20.9]} 44...
Kf6 {[%clk 0:00:07.8]} 45. g4 {[%clk 0:00:21.2]} 45... Kg6 {[%clk 0:00:07.8]}
46. Ke4 {[%clk 0:00:20.7]} 46... Ra1 {[%clk 0:00:07.8]} 47. Kd5 {[%clk 0:00:21]}
47... Rd1+ {[%clk 0:00:07.9]} 48. Kc5 {[%clk 0:00:21.4]} 48... Rb1 {[%clk
0:00:08.3]} 49. Kd6 {[%clk 0:00:21]} 49... Kf6 {[%clk 0:00:08.3]} 50. Kc7 {[%clk
0:00:21.5]} 50... Kg5 {[%clk 0:00:07.6]} 51. Kb8 {[%clk 0:00:20.7]} 51... Kf6
{[%clk 0:00:07.7]} 52. Ka7 {[%clk 0:00:20.8]} 52... Kg5 {[%clk 0:00:08]} 53. Kb8
{[%clk 0:00:20.5]} 53... Kf6 {[%clk 0:00:08.4]} 54. Rc5 {[%clk 0:00:21]} 54...
Ra1 {[%clk 0:00:07.8]} 55. Rxa5 {[%clk 0:00:20.3]} 55... Ra3 {[%clk 0:00:08.5]}
56. Rb5 {[%clk 0:00:19.4]} 56... Rxa4 {[%clk 0:00:08.5]} 57. g5+ {[%clk
0:00:19.4]} 57... Kg6 {[%clk 0:00:08.6]} 58. Kxb7 {[%clk 0:00:20.3]} 58... Rc4
{[%clk 0:00:08.9]} 59. Rb3 {[%clk 0:00:16.7]} 59... Kxg5 {[%clk 0:00:09.2]} 60.
Kb6 {[%clk 0:00:17.6]} 60... Kf5 {[%clk 0:00:09.5]} 61. Kb5 {[%clk 0:00:18.2]}
61... Rc8 {[%clk 0:00:09.9]} 62. c4 {[%clk 0:00:18.7]} 62... Rb8+ {[%clk
0:00:09.7]} 63. Ka4 {[%clk 0:00:19.3]} 63... Ra8+ {[%clk 0:00:09.7]} 64. Kb4
{[%clk 0:00:19.8]} 64... Rb8+ {[%clk 0:00:10.1]} 65. Kc3 {[%clk 0:00:20.5]}
65... Rc8 {[%clk 0:00:10.3]} 66. Rb5+ {[%clk 0:00:20.4]} 66... Ke6 {[%clk
0:00:10.6]} 67. Kb4 {[%clk 0:00:21.3]} 67... Kd6 {[%clk 0:00:10.8]} 68. c5+
{[%clk 0:00:21]} 68... Kc6 {[%clk 0:00:10.8]} 69. Rb6+ {[%clk 0:00:20.9]} 69...
Kc7 {[%clk 0:00:10.9]} 70. Kb5 {[%clk 0:00:21.2]} 70... Rb8 {[%clk 0:00:11.2]}
71. Rxb8 {[%clk 0:00:19.4]} 71... Kxb8 {[%clk 0:00:11.6]} 72. Kb6 {[%clk
0:00:19.4]} 72... Ka8 {[%clk 0:00:10.7]} 73. Kc7 {[%clk 0:00:19.1]} 73... Ka7
{[%clk 0:00:10.2]} 74. Kd7 {[%clk 0:00:19.2]} 1-0

[Event "Late-Titled-Tuesday-Blitz-February-20-2024"]
[Site "Chess.com"]
[Date "2024.02.20"]
[Round "8"]
[White "nindjaxx8"]
[Black "SharathRk6"]
[Result "1-0"]
[WhiteElo "2614"]
[BlackElo "2390"]
[TimeControl "180+1"]
[EndTime "15:29:29 PST"]
[Termination "nindjaxx8 won by resignation"]

1. d4 {[%clk 0:01:57.6]} 1... Nf6 {[%clk 0:02:56.9]} 2. c4 {[%clk 0:01:55.1]}
2... e6 {[%clk 0:02:56.6]} 3. Nc3 {[%clk 0:01:54]} 3... Bb4 {[%clk 0:02:56.6]}
4. Qc2 {[%clk 0:01:54.6]} 4... d5 {[%clk 0:02:54.9]} 5. cxd5 {[%clk 0:01:53.5]}
5... exd5 {[%clk 0:02:55]} 6. Bg5 {[%clk 0:01:52.5]} 6... O-O {[%clk 0:02:54.6]}
7. e3 {[%clk 0:01:47.9]} 7... c6 {[%clk 0:02:54.9]} 8. Nf3 {[%clk 0:01:46.9]}
8... Nbd7 {[%clk 0:02:55.2]} 9. Bd3 {[%clk 0:01:45.9]} 9... h6 {[%clk
0:02:55.1]} 10. Bh4 {[%clk 0:01:45.3]} 10... Re8 {[%clk 0:02:54.8]} 11. O-O
{[%clk 0:01:45.5]} 11... Nf8 {[%clk 0:02:53]} 12. Rfe1 {[%clk 0:01:44.8]} 12...
Be7 {[%clk 0:02:47.5]} 13. Ne5 {[%clk 0:01:41.8]} 13... Ne6 {[%clk 0:02:44.9]}
14. f4 {[%clk 0:01:37]} 14... c5 {[%clk 0:02:44.4]} 15. dxc5 {[%clk 0:01:22.1]}
15... Nxc5 {[%clk 0:02:17.3]} 16. Rad1 {[%clk 0:01:18.3]} 16... Nxd3 {[%clk
0:02:15.3]} 17. Qxd3 {[%clk 0:01:14.6]} 17... Be6 {[%clk 0:01:36.7]} 18. Ne2
{[%clk 0:01:02.6]} 18... Ne4 {[%clk 0:01:30.4]} 19. Bxe7 {[%clk 0:01:00.9]}
19... Qxe7 {[%clk 0:01:31.1]} 20. Nc3 {[%clk 0:01:01.1]} 20... Nxc3 {[%clk
0:01:29.5]} 21. Qxc3 {[%clk 0:01:02]} 21... Rac8 {[%clk 0:01:27.7]} 22. Qd4
{[%clk 0:00:57.6]} 22... Rc2 {[%clk 0:01:14.3]} 23. Rd2 {[%clk 0:00:53.9]} 23...
Rxd2 {[%clk 0:01:12.9]} 24. Qxd2 {[%clk 0:00:54.8]} 24... Qc5 {[%clk 0:01:09.1]}
25. h3 {[%clk 0:00:53.7]} 25... Rc8 {[%clk 0:01:08]} 26. Nf3 {[%clk 0:00:47.2]}
26... Qc2 {[%clk 0:01:04.5]} 27. Qb4 {[%clk 0:00:47]} 27... b6 {[%clk
0:00:55.7]} 28. Nd4 {[%clk 0:00:46.5]} 28... Qe4 {[%clk 0:00:52.7]} 29. Qd2
{[%clk 0:00:44.4]} 29... Bd7 {[%clk 0:00:45.6]} 30. b3 {[%clk 0:00:40.1]} 30...
a5 {[%clk 0:00:39.1]} 31. Kh2 {[%clk 0:00:33.3]} 31... h5 {[%clk 0:00:29.5]} 32.
Rc1 {[%clk 0:00:27.6]} 32... Re8 {[%clk 0:00:24]} 33. Rc7 {[%clk 0:00:19.2]}
33... Bf5 {[%clk 0:00:21.3]} 34. Nxf5 {[%clk 0:00:03.2]} 34... Qxf5 {[%clk
0:00:21]} 35. Qd4 {[%clk 0:00:03.9]} 35... Qe4 {[%clk 0:00:18.7]} 36. Qxb6
{[%clk 0:00:03.2]} 36... Qxe3 {[%clk 0:00:18.8]} 37. Qd6 {[%clk 0:00:02]} 37...
Qe6 {[%clk 0:00:17.2]} 38. Qc5 {[%clk 0:00:01.7]} 38... Qf5 {[%clk 0:00:14.9]}
39. Qc1 {[%clk 0:00:02.1]} 39... Re4 {[%clk 0:00:13.9]} 40. Rc8+ {[%clk
0:00:02.5]} 40... Kh7 {[%clk 0:00:14]} 41. Rc3 {[%clk 0:00:02.7]} 41... Qxf4+
{[%clk 0:00:14.1]} 42. Qxf4 {[%clk 0:00:02.6]} 42... Rxf4 {[%clk 0:00:15]} 43.
Rc5 {[%clk 0:00:03.2]} 43... Rf2 {[%clk 0:00:12.1]} 44. Rxa5 {[%clk 0:00:03.7]}
44... Rd2 {[%clk 0:00:11]} 45. Kg3 {[%clk 0:00:04.1]} 45... g6 {[%clk
0:00:10.4]} 46. a4 {[%clk 0:00:04.6]} 46... d4 {[%clk 0:00:10.7]} 47. Rd5 {[%clk
0:00:04.6]} 47... Rd3+ {[%clk 0:00:10.9]} 48. Kf4 {[%clk 0:00:05.2]} 48... Rxb3
{[%clk 0:00:11]} 49. Rxd4 {[%clk 0:00:05.9]} 49... Kg7 {[%clk 0:00:11.2]} 50.
Ke5 {[%clk 0:00:06]} 50... Ra3 {[%clk 0:00:11.4]} 51. Kd5 {[%clk 0:00:06]} 51...
Kh6 {[%clk 0:00:10.8]} 52. Kc5 {[%clk 0:00:06.2]} 52... Kg5 {[%clk 0:00:10.8]}
53. Kb5 {[%clk 0:00:06.3]} 53... f5 {[%clk 0:00:11.4]} 54. a5 {[%clk 0:00:06.6]}
54... f4 {[%clk 0:00:11.3]} 55. a6 {[%clk 0:00:06.2]} 55... Kf5 {[%clk 0:00:12]}
56. Ra4 {[%clk 0:00:06.1]} 56... Rb3+ {[%clk 0:00:09.5]} 57. Kc6 {[%clk
0:00:06.2]} 57... Rb8 {[%clk 0:00:10.1]} 58. a7 {[%clk 0:00:06.3]} 58... Rf8
{[%clk 0:00:10.4]} 59. a8=Q {[%clk 0:00:05.6]} 59... Rxa8 {[%clk 0:00:10.2]} 60.
Rxa8 {[%clk 0:00:06.5]} 60... g5 {[%clk 0:00:10.6]} 61. Ra4 {[%clk 0:00:06.2]}
61... g4 {[%clk 0:00:10.4]} 62. Kd5 {[%clk 0:00:06.3]} 62... f3 {[%clk
0:00:09.7]} 63. gxf3 {[%clk 0:00:05.4]} 63... gxf3 {[%clk 0:00:09.4]} 64. Ra2
{[%clk 0:00:02.6]} 64... Kf4 {[%clk 0:00:09.6]} 65. Kd4 {[%clk 0:00:03.2]} 65...
Kg3 {[%clk 0:00:09.7]} 66. Ke3 {[%clk 0:00:03.8]} 66... h4 {[%clk 0:00:06.7]}
67. Rf2 {[%clk 0:00:03.4]} 67... Kxh3 {[%clk 0:00:07.3]} 68. Rxf3+ {[%clk
0:00:03.9]} 68... Kg2 {[%clk 0:00:07.5]} 69. Rf2+ {[%clk 0:00:04.1]} 69... Kg1
{[%clk 0:00:07.1]} 70. Rf3 {[%clk 0:00:03.7]} 70... Kg2 {[%clk 0:00:07.6]} 71.
Rf2+ {[%clk 0:00:03.8]} 71... Kg1 {[%clk 0:00:08]} 72. Ra2 {[%clk 0:00:03.6]}
72... h3 {[%clk 0:00:07.9]} 73. Kf3 {[%clk 0:00:04.3]} 73... h2 {[%clk
0:00:07.6]} 74. Kg3 {[%clk 0:00:04.8]} 74... h1=N+ {[%clk 0:00:04.3]} 75. Kf3
{[%clk 0:00:05.2]} 75... Ng3 {[%clk 0:00:01.7]} 76. Kxg3 {[%clk 0:00:05.2]} 1-0